[Event "Live Chess"]
[Site "Chess.com"]
[Date "2011.01.29"]
[Round "-"]
[White "RVKnight"]
[Black "hipposcottimus"]
[Result "0-1"]
[CurrentPosition "r2q3k/ppp3pp/2nb4/4p3/2B5/2P2r1P/PBP2PP1/1R2R1K1 w - -"]
[Timezone "UTC"]
[ECO "C55"]
[ECOUrl "https://www.chess.com/openings/Italian-Game-Two-Knights-Defense-4.O-O"]
[UTCDate "2011.01.29"]
[UTCTime "21:13:24"]
[WhiteElo "1526"]
[BlackElo "1620"]
[TimeControl "60"]
[Termination "hipposcottimus won by resignation"]
[StartTime "21:13:24"]
[EndDate "2011.01.29"]
[EndTime "21:14:05"]
[Link "https://www.chess.com/game/live/92732106"]

1. e4 {[%clk 0:01:00]} 1... e5 {[%clk 0:01:00]} 2. Nf3 {[%clk 0:00:59.2]} 2... Nc6 {[%clk 0:00:59.4]} 3. Bc4 {[%clk 0:00:58.7]} 3... Nf6 {[%clk 0:00:58.8]} 4. O-O {[%clk 0:00:58.3]} 4... d5 {[%clk 0:00:57.8]} 5. exd5 {[%clk 0:00:56.8]} 5... Nxd5 {[%clk 0:00:56.6]} 6. Nc3 {[%clk 0:00:54.8]} 6... Nxc3 {[%clk 0:00:54.8]} 7. bxc3 {[%clk 0:00:54.1]} 7... Bd6 {[%clk 0:00:53.2]} 8. Re1 {[%clk 0:00:53.4]} 8... O-O {[%clk 0:00:52.7]} 9. Bb2 {[%clk 0:00:50.8]} 9... Bg4 {[%clk 0:00:52]} 10. h3 {[%clk 0:00:47.8]} 10... Bxf3 {[%clk 0:00:50.3]} 11. Qxf3 {[%clk 0:00:47.5]} 11... Kh8 {[%clk 0:00:48]} 12. d4 {[%clk 0:00:46.1]} 12... f6 {[%clk 0:00:47.2]} 13. dxe5 {[%clk 0:00:44.3]} 13... fxe5 {[%clk 0:00:46.9]} 14. Rab1 {[%clk 0:00:41.9]} 14... Rxf3 {[%clk 0:00:44.9]} 0-1

[Event "Live Chess"]
[Site "Chess.com"]
[Date "2011.01.29"]
[Round "-"]
[White "Mamzelle_Angelle"]
[Black "hipposcottimus"]
[Result "0-1"]
[CurrentPosition "6k1/1pp3pp/1p4n1/4p3/1P2PP2/P4QP1/q2rN2P/4R1K1 w - -"]
[Timezone "UTC"]
[ECO "C45"]
[ECOUrl "https://www.chess.com/openings/Scotch-Game"]
[UTCDate "2011.01.29"]
[UTCTime "21:09:47"]
[WhiteElo "1414"]
[BlackElo "1614"]
[TimeControl "60"]
[Termination "hipposcottimus won on time"]
[StartTime "21:09:47"]
[EndDate "2011.01.29"]
[EndTime "21:11:57"]
[Link "https://www.chess.com/game/live/92731110"]

1. e4 {[%clk 0:01:00]} 1... e5 {[%clk 0:01:00]} 2. Nf3 {[%clk 0:00:58.7]} 2... Nc6 {[%clk 0:00:59.6]} 3. d4 {[%clk 0:00:58]} 3... d5 {[%clk 0:00:57.2]} 4. dxe5 {[%clk 0:00:55.2]} 4... d4 {[%clk 0:00:56.7]} 5. c3 {[%clk 0:00:51.2]} 5... Bg4 {[%clk 0:00:55.3]} 6. cxd4 {[%clk 0:00:49.6]} 6... Bxf3 {[%clk 0:00:51.6]} 7. Qxf3 {[%clk 0:00:48]} 7... Nxd4 {[%clk 0:00:50.6]} 8. Qd3 {[%clk 0:00:46.9]} 8... Bc5 {[%clk 0:00:43.3]} 9. Be3 {[%clk 0:00:45.7]} 9... Ne7 {[%clk 0:00:41.6]} 10. Nc3 {[%clk 0:00:43]} 10... O-O {[%clk 0:00:38.8]} 11. Be2 {[%clk 0:00:41.4]} 11... Ng6 {[%clk 0:00:37.7]} 12. f4 {[%clk 0:00:38.3]} 12... Qh4+ {[%clk 0:00:33.7]} 13. g3 {[%clk 0:00:36.8]} 13... Qh3 {[%clk 0:00:33]} 14. Bf1 {[%clk 0:00:35.1]} 14... Qg4 {[%clk 0:00:31]} 15. Be2 {[%clk 0:00:34.1]} 15... Qh3 {[%clk 0:00:30.5]} 16. Bf1 {[%clk 0:00:33.4]} 16... Qg4 {[%clk 0:00:30.2]} 17. Be2 {[%clk 0:00:32.9]} 17... Qh3 {[%clk 0:00:30]} 18. Bf1 {[%clk 0:00:32.5]} 18... Qg4 {[%clk 0:00:29.8]} 19. Be2 {[%clk 0:00:32.3]} 19... Qh3 {[%clk 0:00:29.5]} 20. Bf1 {[%clk 0:00:32]} 20... Qe6 {[%clk 0:00:29.2]} 21. Be2 {[%clk 0:00:31.8]} 21... Nxe2 {[%clk 0:00:27.8]} 22. Nxe2 {[%clk 0:00:29.3]} 22... Bb4+ {[%clk 0:00:24.9]} 23. Bd2 {[%clk 0:00:27.1]} 23... Bc5 {[%clk 0:00:22.6]} 24. Be3 {[%clk 0:00:23.6]} 24... Bb4+ {[%clk 0:00:21.4]} 25. Kf2 {[%clk 0:00:22.6]} 25... Qh3 {[%clk 0:00:17.2]} 26. a3 {[%clk 0:00:14.3]} 26... Ba5 {[%clk 0:00:15.2]} 27. b4 {[%clk 0:00:13.2]} 27... Bb6 {[%clk 0:00:14.9]} 28. Bxb6 {[%clk 0:00:12]} 28... axb6 {[%clk 0:00:14.6]} 29. Qf3 {[%clk 0:00:11]} 29... Rad8 {[%clk 0:00:13.6]} 30. Qg2 {[%clk 0:00:10.2]} 30... Qe6 {[%clk 0:00:12.8]} 31. Rad1 {[%clk 0:00:08.5]} 31... Qa2 {[%clk 0:00:10.4]} 32. Rxd8 {[%clk 0:00:06.4]} 32... Rxd8 {[%clk 0:00:10.2]} 33. Qf3 {[%clk 0:00:03.7]} 33... Rd2 {[%clk 0:00:09.6]} 34. Re1 {[%clk 0:00:02.7]} 34... f6 {[%clk 0:00:08.4]} 35. Kg1 {[%clk 0:00:01.1]} 35... fxe5 {[%clk 0:00:07]} 0-1

[Event "Live Chess"]
[Site "Chess.com"]
[Date "2011.01.29"]
[Round "-"]
[White "adamkos101"]
[Black "hipposcottimus"]
[Result "1-0"]
[CurrentPosition "rn3k1r/pppR2Qp/5p2/2q5/5P2/2B2B2/PPP4P/2K1R3 b - -"]
[Timezone "UTC"]
[ECO "C31"]
[ECOUrl "https://www.chess.com/openings/Kings-Gambit-Declined-Falkbeer-Accepted-Staunton-Charousek-Gambit-4...Nf6-5.Nc3"]
[UTCDate "2011.01.29"]
[UTCTime "21:07:52"]
[WhiteElo "1843"]
[BlackElo "1610"]
[TimeControl "60"]
[Termination "adamkos101 won by checkmate"]
[StartTime "21:07:52"]
[EndDate "2011.01.29"]
[EndTime "21:09:07"]
[Link "https://www.chess.com/game/live/92730603"]

1. e4 {[%clk 0:01:00]} 1... e5 {[%clk 0:01:00]} 2. f4 {[%clk 0:00:58.9]} 2... d5 {[%clk 0:00:58.6]} 3. exd5 {[%clk 0:00:57]} 3... e4 {[%clk 0:00:58.1]} 4. Nc3 {[%clk 0:00:56.3]} 4... Nf6 {[%clk 0:00:56.5]} 5. d3 {[%clk 0:00:55]} 5... Bb4 {[%clk 0:00:55.6]} 6. Be2 {[%clk 0:00:51.6]} 6... Qxd5 {[%clk 0:00:51.3]} 7. Bd2 {[%clk 0:00:50.1]} 7... Bxc3 {[%clk 0:00:50.5]} 8. Bxc3 {[%clk 0:00:49.8]} 8... exd3 {[%clk 0:00:46.5]} 9. Qxd3 {[%clk 0:00:49.2]} 9... Qxg2 {[%clk 0:00:45]} 10. Qg3 {[%clk 0:00:45.6]} 10... Qd5 {[%clk 0:00:35.4]} 11. Nf3 {[%clk 0:00:44]} 11... Bg4 {[%clk 0:00:32.7]} 12. Bxf6 {[%clk 0:00:42.3]} 12... Bxf3 {[%clk 0:00:30.2]} 13. Bxf3 {[%clk 0:00:41.3]} 13... Qa5+ {[%clk 0:00:29.7]} 14. Bc3 {[%clk 0:00:39.5]} 14... Qc5 {[%clk 0:00:28.2]} 15. O-O-O {[%clk 0:00:38.6]} 15... f6 {[%clk 0:00:23.7]} 16. Rhe1+ {[%clk 0:00:37.1]} 16... Kf7 {[%clk 0:00:20.5]} 17. Rd7+ {[%clk 0:00:35.7]} 17... Kf8 {[%clk 0:00:19.9]} 18. Qxg7# {[%clk 0:00:34.4]} 1-0

[Event "Live Chess"]
[Site "Chess.com"]
[Date "2011.01.29"]
[Round "-"]
[White "hipposcottimus"]
[Black "adamkos101"]
[Result "0-1"]
[CurrentPosition "8/p4k1p/2n2pp1/2P5/4K1P1/7P/8/8 w - -"]
[Timezone "UTC"]
[ECO "B20"]
[ECOUrl "https://www.chess.com/openings/Sicilian-Defense"]
[UTCDate "2011.01.29"]
[UTCTime "21:05:31"]
[WhiteElo "1614"]
[BlackElo "1779"]
[TimeControl "60"]
[Termination "adamkos101 won on time"]
[StartTime "21:05:31"]
[EndDate "2011.01.29"]
[EndTime "21:07:43"]
[Link "https://www.chess.com/game/live/92729973"]

1. e4 {[%clk 0:01:00]} 1... c5 {[%clk 0:01:00]} 2. Bb5 {[%clk 0:00:58.1]} 2... Nf6 {[%clk 0:00:58.2]} 3. e5 {[%clk 0:00:56.6]} 3... Nd5 {[%clk 0:00:57.2]} 4. c4 {[%clk 0:00:55.2]} 4... Nb6 {[%clk 0:00:55.6]} 5. Nc3 {[%clk 0:00:52.2]} 5... Nc6 {[%clk 0:00:54.8]} 6. Bxc6 {[%clk 0:00:50.6]} 6... bxc6 {[%clk 0:00:54.1]} 7. d3 {[%clk 0:00:50.3]} 7... d5 {[%clk 0:00:53.6]} 8. Nf3 {[%clk 0:00:50]} 8... d4 {[%clk 0:00:52.6]} 9. Ne4 {[%clk 0:00:49]} 9... Bg4 {[%clk 0:00:51.7]} 10. O-O {[%clk 0:00:48.6]} 10... e6 {[%clk 0:00:50.2]} 11. h3 {[%clk 0:00:47.5]} 11... Bxf3 {[%clk 0:00:48.9]} 12. Qxf3 {[%clk 0:00:47.2]} 12... Nd7 {[%clk 0:00:48.3]} 13. Bg5 {[%clk 0:00:46]} 13... Be7 {[%clk 0:00:47]} 14. Kh2 {[%clk 0:00:41.6]} 14... Bxg5 {[%clk 0:00:45.6]} 15. Nxg5 {[%clk 0:00:41.1]} 15... Qxg5 {[%clk 0:00:42.3]} 16. Qxc6 {[%clk 0:00:39.7]} 16... Qxe5+ {[%clk 0:00:40.8]} 17. Kg1 {[%clk 0:00:38.5]} 17... Rd8 {[%clk 0:00:37.3]} 18. Rfe1 {[%clk 0:00:34.2]} 18... Qf6 {[%clk 0:00:35.8]} 19. Qd6 {[%clk 0:00:33.3]} 19... e5 {[%clk 0:00:34]} 20. Qd5 {[%clk 0:00:28.6]} 20... O-O {[%clk 0:00:32.9]} 21. a3 {[%clk 0:00:24.1]} 21... Qb6 {[%clk 0:00:32]} 22. b4 {[%clk 0:00:22.2]} 22... cxb4 {[%clk 0:00:30.9]} 23. axb4 {[%clk 0:00:21.7]} 23... Qxb4 {[%clk 0:00:30.6]} 24. Rab1 {[%clk 0:00:21.4]} 24... Qc3 {[%clk 0:00:29.9]} 25. Rbd1 {[%clk 0:00:19.6]} 25... Kh8 {[%clk 0:00:27.2]} 26. Qf3 {[%clk 0:00:18.9]} 26... f6 {[%clk 0:00:26.4]} 27. Qg4 {[%clk 0:00:18.2]} 27... Nc5 {[%clk 0:00:24.6]} 28. Re2 {[%clk 0:00:15.4]} 28... Nxd3 {[%clk 0:00:23.8]} 29. Re3 {[%clk 0:00:12.3]} 29... Nxf2 {[%clk 0:00:20.7]} 30. Rxc3 {[%clk 0:00:10.9]} 30... Nxg4 {[%clk 0:00:19.6]} 31. Rcd3 {[%clk 0:00:10.1]} 31... e4 {[%clk 0:00:18.4]} 32. Rxd4 {[%clk 0:00:08.8]} 32... Rxd4 {[%clk 0:00:17.8]} 33. Rxd4 {[%clk 0:00:07.1]} 33... Ne3 {[%clk 0:00:16.7]} 34. Rxe4 {[%clk 0:00:06.4]} 34... Nf5 {[%clk 0:00:15.4]} 35. Rf4 {[%clk 0:00:05.6]} 35... g6 {[%clk 0:00:14.4]} 36. g4 {[%clk 0:00:04.5]} 36... Nd6 {[%clk 0:00:14]} 37. Rd4 {[%clk 0:00:03.4]} 37... Rd8 {[%clk 0:00:12.2]} 38. c5 {[%clk 0:00:02.6]} 38... Nb7 {[%clk 0:00:10.8]} 39. Rxd8+ {[%clk 0:00:01.7]} 39... Nxd8 {[%clk 0:00:10.2]} 40. Kf2 {[%clk 0:00:00.8]} 40... Nc6 {[%clk 0:00:09.9]} 41. Ke3 {[%clk 0:00:00.5]} 41... Kg7 {[%clk 0:00:09.5]} 42. Ke4 {[%clk 0:00:00.2]} 42... Kf7 {[%clk 0:00:09.2]} 0-1

[Event "Live Chess"]
[Site "Chess.com"]
[Date "2011.01.29"]
[Round "-"]
[White "sfochris2008"]
[Black "hipposcottimus"]
[Result "0-1"]
[CurrentPosition "8/R5pp/4kp2/8/8/8/PP3PPP/1q4K1 w - -"]
[Timezone "UTC"]
[ECO "C23"]
[ECOUrl "https://www.chess.com/openings/Bishops-Opening-2...Nc6"]
[UTCDate "2011.01.29"]
[UTCTime "21:03:15"]
[WhiteElo "1585"]
[BlackElo "1621"]
[TimeControl "60"]
[Termination "hipposcottimus won by checkmate"]
[StartTime "21:03:15"]
[EndDate "2011.01.29"]
[EndTime "21:05:08"]
[Link "https://www.chess.com/game/live/92729341"]

1. e4 {[%clk 0:01:00]} 1... e5 {[%clk 0:01:00]} 2. Bc4 {[%clk 0:00:58.7]} 2... Nc6 {[%clk 0:00:58.9]} 3. c3 {[%clk 0:00:58.2]} 3... Nf6 {[%clk 0:00:57.4]} 4. Qb3 {[%clk 0:00:57.9]} 4... d5 {[%clk 0:00:56.1]} 5. exd5 {[%clk 0:00:56.6]} 5... Na5 {[%clk 0:00:55.3]} 6. Bb5+ {[%clk 0:00:54.7]} 6... c6 {[%clk 0:00:54.3]} 7. Bxc6+ {[%clk 0:00:44.2]} 7... bxc6 {[%clk 0:00:54.1]} 8. Qa4 {[%clk 0:00:42.6]} 8... Nxd5 {[%clk 0:00:52.7]} 9. d4 {[%clk 0:00:38.5]} 9... Nb6 {[%clk 0:00:51.7]} 10. Qc2 {[%clk 0:00:34]} 10... exd4 {[%clk 0:00:50.3]} 11. cxd4 {[%clk 0:00:33.6]} 11... Be7 {[%clk 0:00:49.7]} 12. Bd2 {[%clk 0:00:32.9]} 12... O-O {[%clk 0:00:49.3]} 13. Bxa5 {[%clk 0:00:31.7]} 13... Re8 {[%clk 0:00:45.9]} 14. Bxb6 {[%clk 0:00:30.6]} 14... Bc5+ {[%clk 0:00:43.4]} 15. Ne2 {[%clk 0:00:25.8]} 15... Bxb6 {[%clk 0:00:39.8]} 16. Nc3 {[%clk 0:00:24.7]} 16... Bxd4 {[%clk 0:00:37.6]} 17. Rd1 {[%clk 0:00:21.9]} 17... Ba6 {[%clk 0:00:35.2]} 18. O-O {[%clk 0:00:19.5]} 18... Bxe2 {[%clk 0:00:33.8]} 19. Nxe2 {[%clk 0:00:16.1]} 19... c5 {[%clk 0:00:33.4]} 20. Nxd4 {[%clk 0:00:13.6]} 20... cxd4 {[%clk 0:00:33.1]} 21. Qd3 {[%clk 0:00:13.1]} 21... Qb6 {[%clk 0:00:28.9]} 22. Qxd4 {[%clk 0:00:11.5]} 22... Qg6 {[%clk 0:00:28.3]} 23. Qd7 {[%clk 0:00:09.1]} 23... f6 {[%clk 0:00:27.6]} 24. Rd6 {[%clk 0:00:06.2]} 24... Rab8 {[%clk 0:00:25.7]} 25. Rfd1 {[%clk 0:00:05.3]} 25... Rf8 {[%clk 0:00:23.5]} 26. Qd8 {[%clk 0:00:04.8]} 26... Rbxd8 {[%clk 0:00:21.6]} 27. Rxd8 {[%clk 0:00:04.5]} 27... Rxd8 {[%clk 0:00:21.1]} 28. Rxd8+ {[%clk 0:00:03.9]} 28... Kf7 {[%clk 0:00:20.8]} 29. Rd7+ {[%clk 0:00:03.6]} 29... Ke6 {[%clk 0:00:20.3]} 30. Rxa7 {[%clk 0:00:02.8]} 30... Qb1# {[%clk 0:00:19.8]} 0-1

[Event "Live Chess"]
[Site "Chess.com"]
[Date "2011.01.29"]
[Round "-"]
[White "hipposcottimus"]
[Black "rogertrimble"]
[Result "1-0"]
[CurrentPosition "4r2k/p1pq2bp/1p1p2p1/3P4/3B4/8/PP3QPP/5RK1 b - -"]
[Timezone "UTC"]
[ECO "B00"]
[ECOUrl "https://www.chess.com/openings/Owens-Defense-2.d4-Bb7"]
[UTCDate "2011.01.29"]
[UTCTime "21:00:44"]
[WhiteElo "1614"]
[BlackElo "1492"]
[TimeControl "60"]
[Termination "hipposcottimus won on time"]
[StartTime "21:00:44"]
[EndDate "2011.01.29"]
[EndTime "21:02:43"]
[Link "https://www.chess.com/game/live/92728624"]

1. e4 {[%clk 0:01:00]} 1... b6 {[%clk 0:01:00]} 2. d4 {[%clk 0:00:58.4]} 2... Bb7 {[%clk 0:00:59.7]} 3. d5 {[%clk 0:00:58.1]} 3... e6 {[%clk 0:00:59.2]} 4. c4 {[%clk 0:00:57.9]} 4... exd5 {[%clk 0:00:58.5]} 5. cxd5 {[%clk 0:00:57.7]} 5... Nf6 {[%clk 0:00:57.3]} 6. Nc3 {[%clk 0:00:57.4]} 6... Be7 {[%clk 0:00:56.3]} 7. Bc4 {[%clk 0:00:56.8]} 7... O-O {[%clk 0:00:55.5]} 8. e5 {[%clk 0:00:56.5]} 8... Ne8 {[%clk 0:00:50.8]} 9. Nf3 {[%clk 0:00:55.4]} 9... f6 {[%clk 0:00:47.5]} 10. O-O {[%clk 0:00:54.1]} 10... fxe5 {[%clk 0:00:46.6]} 11. Nxe5 {[%clk 0:00:52.8]} 11... d6 {[%clk 0:00:45.8]} 12. Ng4 {[%clk 0:00:47.2]} 12... Bc8 {[%clk 0:00:43.7]} 13. Ne3 {[%clk 0:00:46.2]} 13... Bf5 {[%clk 0:00:41.2]} 14. Nxf5 {[%clk 0:00:45.2]} 14... Rxf5 {[%clk 0:00:40.4]} 15. Bd3 {[%clk 0:00:43.7]} 15... Rf8 {[%clk 0:00:38.6]} 16. Qh5 {[%clk 0:00:42.6]} 16... g6 {[%clk 0:00:33.7]} 17. Qg4 {[%clk 0:00:41.9]} 17... Bf6 {[%clk 0:00:31.4]} 18. Bh6 {[%clk 0:00:39.9]} 18... Bg7 {[%clk 0:00:29.1]} 19. Bg5 {[%clk 0:00:34]} 19... Qd7 {[%clk 0:00:28]} 20. Qg3 {[%clk 0:00:32]} 20... Be5 {[%clk 0:00:26]} 21. Qe3 {[%clk 0:00:29.1]} 21... Bg7 {[%clk 0:00:21.8]} 22. Ne4 {[%clk 0:00:26.9]} 22... Nf6 {[%clk 0:00:16.4]} 23. Rae1 {[%clk 0:00:26]} 23... Nxe4 {[%clk 0:00:15.3]} 24. Bxe4 {[%clk 0:00:25.7]} 24... Na6 {[%clk 0:00:13.7]} 25. Qd3 {[%clk 0:00:24.3]} 25... Rae8 {[%clk 0:00:12.3]} 26. f3 {[%clk 0:00:22.4]} 26... Nc5 {[%clk 0:00:10.4]} 27. Qd2 {[%clk 0:00:21.9]} 27... Nxe4 {[%clk 0:00:09.5]} 28. fxe4 {[%clk 0:00:21.5]} 28... Rxf1+ {[%clk 0:00:06.1]} 29. Rxf1 {[%clk 0:00:21]} 29... Rxe4 {[%clk 0:00:05.2]} 30. Qf2 {[%clk 0:00:19.8]} 30... Re8 {[%clk 0:00:03.9]} 31. Be3 {[%clk 0:00:16.8]} 31... Kh8 {[%clk 0:00:01.5]} 32. Bd4 {[%clk 0:00:16]} 1-0

[Event "Live Chess"]
[Site "Chess.com"]
[Date "2011.01.29"]
[Round "-"]
[White "rogertrimble"]
[Black "hipposcottimus"]
[Result "0-1"]
[CurrentPosition "8/R6p/p3k1p1/Pp6/4pPP1/2r3K1/8/8 w - -"]
[Timezone "UTC"]
[ECO "C22"]
[ECOUrl "https://www.chess.com/openings/Center-Game-Accepted-Normal-Variation"]
[UTCDate "2011.01.29"]
[UTCTime "20:58:12"]
[WhiteElo "1498"]
[BlackElo "1608"]
[TimeControl "60"]
[Termination "hipposcottimus won on time"]
[StartTime "20:58:12"]
[EndDate "2011.01.29"]
[EndTime "21:00:28"]
[Link "https://www.chess.com/game/live/92727832"]

1. e4 {[%clk 0:01:00]} 1... e5 {[%clk 0:01:00]} 2. d4 {[%clk 0:00:56.4]} 2... exd4 {[%clk 0:00:57.2]} 3. Qxd4 {[%clk 0:00:55.1]} 3... Nc6 {[%clk 0:00:56.9]} 4. Qd1 {[%clk 0:00:52.8]} 4... d6 {[%clk 0:00:56.5]} 5. Nf3 {[%clk 0:00:50.6]} 5... Nf6 {[%clk 0:00:55.9]} 6. Be2 {[%clk 0:00:48.7]} 6... Bg4 {[%clk 0:00:53.6]} 7. O-O {[%clk 0:00:47.4]} 7... Be7 {[%clk 0:00:51.7]} 8. Nc3 {[%clk 0:00:44.4]} 8... O-O {[%clk 0:00:50.5]} 9. Bg5 {[%clk 0:00:43]} 9... Nxe4 {[%clk 0:00:45.7]} 10. Bxe7 {[%clk 0:00:41.2]} 10... Nxc3 {[%clk 0:00:43.5]} 11. Bxd8 {[%clk 0:00:38.2]} 11... Nxd1 {[%clk 0:00:42.6]} 12. Raxd1 {[%clk 0:00:36.9]} 12... Raxd8 {[%clk 0:00:41.1]} 13. h3 {[%clk 0:00:36.4]} 13... Bh5 {[%clk 0:00:39.8]} 14. g4 {[%clk 0:00:35.1]} 14... Bg6 {[%clk 0:00:39.5]} 15. Nd4 {[%clk 0:00:34.4]} 15... Nxd4 {[%clk 0:00:37]} 16. Rxd4 {[%clk 0:00:33.5]} 16... Bxc2 {[%clk 0:00:36.7]} 17. Bd3 {[%clk 0:00:32.2]} 17... Bxd3 {[%clk 0:00:33.8]} 18. Rxd3 {[%clk 0:00:31.2]} 18... c5 {[%clk 0:00:33.6]} 19. Kg2 {[%clk 0:00:30.4]} 19... f5 {[%clk 0:00:33.1]} 20. b3 {[%clk 0:00:29.7]} 20... fxg4 {[%clk 0:00:31.8]} 21. hxg4 {[%clk 0:00:28.1]} 21... Rf4 {[%clk 0:00:30.2]} 22. f3 {[%clk 0:00:26.8]} 22... Rb4 {[%clk 0:00:27.2]} 23. Kg3 {[%clk 0:00:25.3]} 23... c4 {[%clk 0:00:25.4]} 24. bxc4 {[%clk 0:00:23.8]} 24... Rxc4 {[%clk 0:00:24.5]} 25. Rfd1 {[%clk 0:00:22.2]} 25... Rc6 {[%clk 0:00:21.4]} 26. a3 {[%clk 0:00:21]} 26... b6 {[%clk 0:00:20.2]} 27. Rd4 {[%clk 0:00:20.1]} 27... a6 {[%clk 0:00:19.2]} 28. a4 {[%clk 0:00:18.9]} 28... b5 {[%clk 0:00:18.2]} 29. Rb1 {[%clk 0:00:16.2]} 29... Rc5 {[%clk 0:00:15.2]} 30. a5 {[%clk 0:00:12.6]} 30... g6 {[%clk 0:00:12.4]} 31. Rbb4 {[%clk 0:00:11.5]} 31... d5 {[%clk 0:00:10.6]} 32. f4 {[%clk 0:00:09.9]} 32... Re8 {[%clk 0:00:07.5]} 33. Rd3 {[%clk 0:00:05.9]} 33... Re4 {[%clk 0:00:06.2]} 34. Rxe4 {[%clk 0:00:04.5]} 34... dxe4 {[%clk 0:00:05.9]} 35. Rd8+ {[%clk 0:00:03.7]} 35... Kf7 {[%clk 0:00:04.8]} 36. Rd7+ {[%clk 0:00:03]} 36... Ke6 {[%clk 0:00:02.7]} 37. Ra7 {[%clk 0:00:01.5]} 37... Rc3+ {[%clk 0:00:01.9]} 0-1

[Event "Live Chess"]
[Site "Chess.com"]
[Date "2011.01.29"]
[Round "-"]
[White "Appollyonn"]
[Black "hipposcottimus"]
[Result "1-0"]
[CurrentPosition "3N2Qk/1rP3pp/8/4P3/ppB5/7P/PP3RP1/R1B3K1 b - -"]
[Timezone "UTC"]
[ECO "C31"]
[ECOUrl "https://www.chess.com/openings/Kings-Gambit-Declined-Falkbeer-Blackburne-Attack"]
[UTCDate "2011.01.29"]
[UTCTime "20:56:17"]
[WhiteElo "2005"]
[BlackElo "1602"]
[TimeControl "60"]
[Termination "Appollyonn won by checkmate"]
[StartTime "20:56:17"]
[EndDate "2011.01.29"]
[EndTime "20:57:40"]
[Link "https://www.chess.com/game/live/92727364"]

1. e4 {[%clk 0:01:00]} 1... e5 {[%clk 0:01:00]} 2. f4 {[%clk 0:00:59.5]} 2... d5 {[%clk 0:00:58.5]} 3. Nf3 {[%clk 0:00:59.2]} 3... dxe4 {[%clk 0:00:57.3]} 4. Nxe5 {[%clk 0:00:58.7]} 4... Bd6 {[%clk 0:00:56.4]} 5. Bc4 {[%clk 0:00:57.3]} 5... Bxe5 {[%clk 0:00:54.5]} 6. fxe5 {[%clk 0:00:57.1]} 6... Be6 {[%clk 0:00:52.1]} 7. Bb5+ {[%clk 0:00:54.8]} 7... c6 {[%clk 0:00:51.2]} 8. Be2 {[%clk 0:00:53.7]} 8... Ne7 {[%clk 0:00:50.9]} 9. O-O {[%clk 0:00:53.1]} 9... O-O {[%clk 0:00:50.5]} 10. h3 {[%clk 0:00:52.7]} 10... f5 {[%clk 0:00:49.8]} 11. d3 {[%clk 0:00:52.1]} 11... Nd5 {[%clk 0:00:47.1]} 12. dxe4 {[%clk 0:00:51.3]} 12... fxe4 {[%clk 0:00:45.2]} 13. c4 {[%clk 0:00:50.9]} 13... Ne7 {[%clk 0:00:40.6]} 14. Nc3 {[%clk 0:00:48.8]} 14... Na6 {[%clk 0:00:39.8]} 15. Nxe4 {[%clk 0:00:47.8]} 15... Nc5 {[%clk 0:00:39]} 16. Nxc5 {[%clk 0:00:46.5]} 16... Nd5 {[%clk 0:00:37.8]} 17. Nxe6 {[%clk 0:00:44.6]} 17... Rf2 {[%clk 0:00:32.5]} 18. Rxf2 {[%clk 0:00:43.3]} 18... b5 {[%clk 0:00:30.2]} 19. Nxd8 {[%clk 0:00:42.1]} 19... a5 {[%clk 0:00:29.9]} 20. cxd5 {[%clk 0:00:41.2]} 20... b4 {[%clk 0:00:28.3]} 21. dxc6 {[%clk 0:00:40.6]} 21... Rb8 {[%clk 0:00:26]} 22. c7 {[%clk 0:00:39.8]} 22... a4 {[%clk 0:00:22.5]} 23. Qd5+ {[%clk 0:00:38.3]} 23... Kh8 {[%clk 0:00:20.5]} 24. Bc4 {[%clk 0:00:37.5]} 24... Rb7 {[%clk 0:00:13.7]} 25. Qg8# {[%clk 0:00:36.5]} 1-0

[Event "Live Chess"]
[Site "Chess.com"]
[Date "2011.01.29"]
[Round "-"]
[White "hipposcottimus"]
[Black "ponchozamora"]
[Result "1-0"]
[CurrentPosition "r2q3r/pb1p1P1k/1pn3Q1/4N2p/8/2N5/PPP3PP/R4RK1 b - -"]
[Timezone "UTC"]
[ECO "B00"]
[ECOUrl "https://www.chess.com/openings/Owens-Defense-2.d4-Bb7"]
[UTCDate "2011.01.29"]
[UTCTime "20:31:09"]
[WhiteElo "1602"]
[BlackElo "1174"]
[TimeControl "60"]
[Termination "hipposcottimus won by checkmate"]
[StartTime "20:31:09"]
[EndDate "2011.01.29"]
[EndTime "20:32:26"]
[Link "https://www.chess.com/game/live/92720382"]

1. e4 {[%clk 0:01:00]} 1... b6 {[%clk 0:01:00]} 2. d4 {[%clk 0:00:59.9]} 2... Bb7 {[%clk 0:00:59.3]} 3. e5 {[%clk 0:00:59.6]} 3... g6 {[%clk 0:00:58.6]} 4. d5 {[%clk 0:00:59.3]} 4... Bg7 {[%clk 0:00:58.1]} 5. f4 {[%clk 0:00:58.2]} 5... f6 {[%clk 0:00:57.7]} 6. Nf3 {[%clk 0:00:56.6]} 6... g5 {[%clk 0:00:56.5]} 7. Bc4 {[%clk 0:00:53]} 7... h6 {[%clk 0:00:55.3]} 8. Nc3 {[%clk 0:00:50.5]} 8... gxf4 {[%clk 0:00:53.8]} 9. O-O {[%clk 0:00:48.1]} 9... h5 {[%clk 0:00:51.7]} 10. Bxf4 {[%clk 0:00:47.1]} 10... Bh6 {[%clk 0:00:49.9]} 11. Qd2 {[%clk 0:00:42.4]} 11... Bxf4 {[%clk 0:00:48.4]} 12. Qxf4 {[%clk 0:00:42.1]} 12... Nh6 {[%clk 0:00:47.7]} 13. exf6 {[%clk 0:00:40.2]} 13... Nf7 {[%clk 0:00:44]} 14. d6 {[%clk 0:00:36.7]} 14... e5 {[%clk 0:00:41.9]} 15. Bxf7+ {[%clk 0:00:34.9]} 15... Kxf7 {[%clk 0:00:39.9]} 16. Qxe5 {[%clk 0:00:34]} 16... cxd6 {[%clk 0:00:36.9]} 17. Qxd6 {[%clk 0:00:32.3]} 17... Nc6 {[%clk 0:00:33.4]} 18. Ne5+ {[%clk 0:00:31.8]} 18... Kg8 {[%clk 0:00:29.5]} 19. f7+ {[%clk 0:00:29.7]} 19... Kh7 {[%clk 0:00:24.6]} 20. Qg6# {[%clk 0:00:28.7]} 1-0